{"text_format":"2","workbook":"xlsx","n_sheets":17,"sheets":["Költségösszesítő","KDP ösztöndíj","Témavezető havi juttatása","Váll-i szakértő-havi juttatás","Fokozatmegszerzési díj"," anyagköltség ","igénybe vett szolg","egyéb szolgáltatások","immat jav beszerz","műszaki berendezések","egyéb berendezések","Ösztöndíjas felhasznált költ","(LNY) lemondó nyilatkozat","lemondás megoszlás","(NYF)nyilatkozat függetlenségre","nyilatkozat a kettős elszámolás","támogatás típusai"],"not_rendered":{"charts":0,"images":0,"macros":0,"external_links":0,"defined_names":11,"comments":0,"pivot_tables":0},"unopened":[],"bounds":{"document_bytes":16777216,"sheet_cells":100000,"run_cost":"one","rows_first":2000,"rows_last":500,"rows_between":2000,"halvings":0,"cell_chars":16384,"cell_head_chars":4096},"cells_cut":0,"cells_raw":0,"read":"whole","date_system":"1900"}

{"sheet":"Költségösszesítő","index":0,"n_rows":48,"n_cols":4,"rows_kept":48,"cut":false,"hidden":false,"merged":[[32,3,32,5],[33,3,33,5],[35,3,35,5],[46,0,46,3],[41,0,41,5],[43,4,43,5],[34,3,34,5],[44,0,44,1],[45,0,45,4],[33,1,33,2],[34,0,34,2],[35,0,35,2],[47,0,47,4],[37,3,37,5],[37,0,37,1],[22,3,22,5],[23,3,23,5],[24,3,24,5],[25,3,25,5],[31,3,31,5],[26,3,26,5],[27,3,27,5],[28,3,28,5],[29,3,29,5],[30,3,30,5],[30,1,30,2],[22,0,26,0],[27,0,32,0],[22,1,22,2],[23,1,23,2],[24,1,24,2],[25,1,25,2],[26,1,26,2],[27,1,27,2],[28,1,28,2],[29,1,29,2],[31,1,31,2],[32,1,32,2],[21,1,21,2],[14,0,14,2],[14,3,14,5],[15,0,15,2],[15,3,15,5],[16,0,16,2],[16,3,16,5],[17,0,17,1],[17,3,20,5],[18,0,18,2],[19,0,19,2],[20,0,20,1],[21,3,21,5],[11,0,11,2],[11,3,11,5],[12,0,12,2],[12,3,12,5],[13,0,13,2],[13,3,13,5],[8,0,8,2],[8,3,8,5],[9,0,9,2],[9,3,9,5],[10,0,10,2],[10,3,10,5],[7,0,7,2],[7,3,7,5],[0,0,0,5],[1,0,1,5],[3,0,3,5],[5,0,5,5],[6,0,6,5]]}
["Egy példányban kitöltve, eredeti aláírással és bélyegzéssel ellátva kell benyújtani."]
["Az űrlap másolható, alakját és tartalmát kérjük, ne változtassa meg!"]
[]
["Elszámolt költségek összesítő"]
[]
["Számviteli bizonylat a(z) ……………...számú támogatói dokumentumban foglalt források felhasználásának elszámolásához"]
["A bizonylat formájára és tartalmára a számvitelről szóló 2000. évi C. törvény előírásai az irányadók"]
["Kedvezményezett:",null,null,"Támogatást nyújtó:"]
[null,null,null,"Nemzeti Kutatási, Fejlesztési és Innovációs Hivatal"]
["Kedvezményezett intézmény neve:………………………………",null,null,"címe: 1072 Budapest, Kéthly Anna tér 1."]
[null,null,null,"Magyar Államkincstárnál vezetett  számla"]
["címe: ……………………………………………………",null,null,"Megnevezése: "]
["Adóazonosító száma: …………………………………",null,null,"Nemzeti Kutatási, Fejlesztési és Innovációs Alap, Előirányzat-felhasználási keretszámla: "]
["Számlavezető intézet: ………………………………………..…..",null,null,"száma: "]
[null,null,null,"10032000-00334806-00000000"]
["Pénzforgalmi jelzőszáma:",null,null,"AHT azonosító:  "]
["………………………………………………..………..",null,null,348962]
["Teljesítés időpontja:",null,"Bizonylat kelte:","Elszámolási bizonylat sorszáma: ()"]
["Program neve:"]
["Elszámolási időszak kezdete - vége"]
["         év        hó       nap",null,"         év        hó       nap"]
["Költség kategória","Költség fajta",null,"Támogatás összege (Ft)"]
["KDP ösztöndíj témavezető és vállalati szakértő díjazása+járulékai","Bérköltség - KDP ösztöndíjas",null,{"$f":"'KDP ösztöndíj'!F45","v":0}]
[null,"Bérköltség - Témavezető",null,{"$f":"'Témavezető havi juttatása'!O45","v":0}]
[null,"Bérköltség - Vállalati szakértő",null,{"$f":"'Váll-i szakértő-havi juttatás'!O45","v":0}]
[null,"Személyi jellegű egyéb kifizetések - Fokozat megszerzési díj",null,{"$f":"'Fokozatmegszerzési díj'!L45","v":0}]
[null,"Bérjárulék (Témavezető, vállalati szakértő)",null,{"$f":"'Témavezető havi juttatása'!R45+'Váll-i szakértő-havi juttatás'!R45","v":0}]
["KDP ösztöndíjasok után biztosított támogatás - 80%","Immateriális javak",null,{"$f":"'immat jav beszerz'!S26","v":0}]
[null,"Műszaki berendezések, gépek, járművek",null,{"$f":"'műszaki berendezések'!S25","v":0}]
[null,"Egyéb berendezések, gépek, járművek",null,{"$f":"'egyéb berendezések'!S25","v":0}]
[null,"Anyagköltség",null,{"$f":"' anyagköltség '!P35","v":0}]
[null,"Igénybe vett szolgáltatások költségei",null,{"$f":"'igénybe vett szolg'!P28","v":0}]
[null,"Egyéb szolgáltatások költségei",null,{"$f":"'egyéb szolgáltatások'!P25","v":0}]
["20 %-os átalány","Intézményi működési költség - átalány*"]
["Intézményi támogatás összesen (Ft)",null,null,{"$f":"SUM(D28:F34)","v":0}]
["Összes költség (Ft)",null,null,{"$f":"SUM(D23:F34)","v":0}]
[]
["Elszámolt támogatás összesen: ",null,{"$f":"D36","v":0},"azaz ………………………...……………………………Ft"]
[]
[]
["Dátum:"]
["kedvezményezett intézmény cégszerű aláírás (**)\n\n ……………………………………………………………………"]
[]
[null,null,null,"PH."]
[]
[]
[]
["* Intézményi működési költség - átalányt egyedül az elszámolás összesítőben szükséges feltüntetni, azt bizonylat szinten nem kell részletezni."]

{"sheet":"KDP ösztöndíj","index":1,"n_rows":45,"n_cols":8,"rows_kept":45,"cut":false,"hidden":false,"merged":[[46,0,48,7],[4,0,4,7],[6,0,6,1],[6,2,6,3],[6,5,6,7],[6,4,7,4],[0,0,0,3],[1,0,1,3],[2,0,2,3],[43,0,43,7],[44,0,44,3],[0,4,0,7],[1,4,1,7],[2,4,2,7]]}
["Kedvezményezett neve:"]
["Szerződésszám:"]
["Az elszámolással érintett időszak kezdete és vége:"]
[]
["Bérköltség-KDP ösztöndíjas"]
[]
["Projektben résztvevő ",null,"Az elszámolt időszak",null,"Pénzügyi teljesítés időpontja","Projektre elszámolt ösztöndíj"]
["neve","státusza (legördülő lista)\n","kezdete (dátum)","vége (dátum)",null,"Támogatás","Saját forrás","Egyéb forrás"]
{"$rows_empty":36}
["Összesen:",{"$nulls":4},{"$f":"SUM(F9:F43)","v":0},0,0]

{"sheet":"Témavezető havi juttatása","index":2,"n_rows":45,"n_cols":20,"rows_kept":45,"cut":false,"hidden":false,"merged":[[46,1,48,19],[4,1,4,19],[6,1,6,2],[6,3,6,4],[6,5,7,5],[6,6,7,6],[6,7,7,7],[6,8,6,10],[6,11,6,13],[6,14,6,16],[6,17,6,19],[44,0,44,7],[0,1,0,2],[1,1,1,2],[2,1,2,2],[0,3,0,11],[1,3,1,11],[2,3,2,11]]}
[null,"Kedvezményezett neve:",null,{"$f":"'KDP ösztöndíj'!E1","v":0}]
[null,"Szerződésszám:",null,{"$f":"'KDP ösztöndíj'!E2","v":0}]
[null,"Az elszámolással érintett időszak kezdete és vége:",null,{"$f":"'KDP ösztöndíj'!E3","v":0}]
[]
[null,"Bérköltség- Témavezető"]
[]
[null,"Projektben résztvevő ",null,"Az elszámolt időszak",null,"Az adott hónapban a projektre elszámolt munka-órák száma*","Pénzügyi teljesítés időpontja","Állandó dolgozó (Á), vagy megbí-zásos dolgozó (M)  (legördülő menű)","Projektre elszámolt bruttó bér (Ft)",null,null,"Projektre elszámolt egyéb juttatások (Ft) (pld. napidíj, stb.)",null,null,"Projektre elszámolt bruttó bér és juttatások összesen (Ft)",null,null,"Projektre elszámolt bruttó bér járuléka (Ft)"]
["Kapcsolódó KDP ösztöndíjas neve","neve","státusza (legördülő lista)\n","kezdete (dátum)","vége (dátum)",null,null,null,"Támogatás","Saját forrás","Egyéb forrás","Támogatás","Saját forrás","Egyéb forrás","Támogatás","Saját forrás","Egyéb forrás","Támogatás","Saját forrás","Egyéb forrás"]
[{"$nulls":14},{"$f":"I9+L9","v":0},{"$f":"J9+M9","v":0},{"$f":"K9+N9","v":0}]
[{"$nulls":14},{"$f":"I10+L10","v":0},0,0]
[{"$nulls":14},0,0,0]
[{"$nulls":14},0,0,0]
[{"$nulls":14},0,0,0]
[{"$nulls":14},0,0,0]
[{"$nulls":14},0,0,0]
[{"$nulls":14},0,0,0]
[{"$nulls":14},0,0,0]
[{"$nulls":14},0,0,0]
[{"$nulls":14},0,0,0]
[{"$nulls":14},0,0,0]
[{"$nulls":14},0,0,0]
[{"$nulls":14},0,0,0]
[{"$nulls":14},0,0,0]
[{"$nulls":14},0,0,0]
[{"$nulls":14},0,0,0]
[{"$nulls":14},{"$f":"I26+L26","v":0},0,0]
[{"$nulls":14},0,0,0]
[{"$nulls":14},0,0,0]
[{"$nulls":14},0,0,0]
[{"$nulls":14},0,0,0]
[{"$nulls":14},0,0,0]
[{"$nulls":14},0,0,0]
[{"$nulls":14},0,0,0]
[{"$nulls":14},0,0,0]
[{"$nulls":14},0,0,0]
[{"$nulls":14},0,0,0]
[{"$nulls":14},0,0,0]
[{"$nulls":14},0,0,0]
[{"$nulls":14},0,0,0]
[{"$nulls":14},0,0,0]
[{"$nulls":14},0,0,0]
[{"$nulls":14},{"$f":"I42+L42","v":0},0,0]
[{"$nulls":14},0,0,0]
[]
["Összesen:",{"$nulls":7},{"$f":"SUM(I9:I43)","v":0},{"$f":"SUM(J9:J43)","v":0},0,0,0,0,0,0,0,0,0,0]

{"sheet":"Váll-i szakértő-havi juttatás","index":3,"n_rows":45,"n_cols":20,"rows_kept":45,"cut":false,"hidden":false,"merged":[[43,0,43,19],[44,0,44,7],[46,0,46,19],[4,1,4,19],[6,1,6,2],[6,3,6,4],[6,5,7,5],[6,6,7,6],[6,7,7,7],[6,8,6,10],[6,11,6,13],[6,14,6,16],[6,17,6,19],[0,1,0,2],[0,3,0,11],[1,1,1,2],[1,3,1,11],[2,1,2,2],[2,3,2,11]]}
[null,"Kedvezményezett neve:",null,{"$f":"'KDP ösztöndíj'!E1","v":0}]
[null,"Szerződésszám:",null,{"$f":"'KDP ösztöndíj'!E2","v":0}]
[null,"Az elszámolással érintett időszak kezdete és vége:",null,{"$f":"'KDP ösztöndíj'!E3","v":0}]
[]
[null,"Bérköltség- Vállalati szakértő"]
[]
[null,"Projektben résztvevő ",null,"Az elszámolt időszak",null,"Az adott hónapban a projektre elszámolt munka-órák száma*","Pénzügyi teljesítés időpontja","Állandó dolgozó (Á), vagy megbí-zásos dolgozó (M)  (legördülő menű)","Projektre elszámolt bruttó bér (Ft)",null,null,"Projektre elszámolt egyéb juttatások (Ft) (pld. napidíj, stb.)",null,null,"Projektre elszámolt bruttó bér és juttatások összesen (Ft)",null,null,"Projektre elszámolt bruttó bér járuléka (Ft)"]
["Kapcsolódó KDP ösztöndíjas neve","neve","státusza (legördülő lista)\n","kezdete (dátum)","vége (dátum)",null,null,null,"Támogatás","Saját forrás","Egyéb forrás","Támogatás","Saját forrás","Egyéb forrás","Támogatás","Saját forrás","Egyéb forrás","Támogatás","Saját forrás","Egyéb forrás"]
[{"$nulls":14},{"$f":"I9+L9","v":0},{"$f":"J9+M9","v":0},{"$f":"K9+N9","v":0}]
[{"$nulls":14},{"$f":"I10+L10","v":0},0,0]
[{"$nulls":14},0,0,0]
[{"$nulls":14},0,0,0]
[{"$nulls":14},0,0,0]
[{"$nulls":14},0,0,0]
[{"$nulls":14},0,0,0]
[{"$nulls":14},0,0,0]
[{"$nulls":14},0,0,0]
[{"$nulls":14},0,0,0]
[{"$nulls":14},0,0,0]
[{"$nulls":14},0,0,0]
[{"$nulls":14},0,0,0]
[{"$nulls":14},0,0,0]
[{"$nulls":14},0,0,0]
[{"$nulls":14},0,0,0]
[{"$nulls":14},0,0,0]
[{"$nulls":14},{"$f":"I26+L26","v":0},0,0]
[{"$nulls":14},0,0,0]
[{"$nulls":14},0,0,0]
[{"$nulls":14},0,0,0]
[{"$nulls":14},0,0,0]
[{"$nulls":14},0,0,0]
[{"$nulls":14},0,0,0]
[{"$nulls":14},0,0,0]
[{"$nulls":14},0,0,0]
[{"$nulls":14},0,0,0]
[{"$nulls":14},0,0,0]
[{"$nulls":14},0,0,0]
[{"$nulls":14},0,0,0]
[{"$nulls":14},0,0,0]
[{"$nulls":14},0,0,0]
[{"$nulls":14},0,0,0]
[{"$nulls":14},{"$f":"I42+L42","v":0},0,0]
[{"$nulls":14},0,0,0]
[]
["Összesen:",{"$nulls":7},{"$f":"SUM(I9:I43)","v":0},{"$f":"SUM(J9:J43)","v":0},0,0,0,0,0,0,0,0,0,0]

{"sheet":"Fokozatmegszerzési díj","index":4,"n_rows":47,"n_cols":14,"rows_kept":47,"cut":false,"hidden":false,"merged":[[4,0,4,13],[46,0,48,4],[44,0,44,4],[6,0,6,1],[6,2,6,3],[6,5,6,7],[6,8,6,10],[6,11,6,13],[43,0,43,13],[6,4,7,4],[0,2,0,10],[1,2,1,10],[2,2,2,10],[0,0,0,1],[1,0,1,1],[2,0,2,1]]}
["Kedvezményezett neve:",null,{"$f":"'KDP ösztöndíj'!E1","v":0}]
["Szerződésszám:",null,{"$f":"'KDP ösztöndíj'!E2","v":0}]
["Az elszámolással érintett időszak kezdete és vége:",null,{"$f":"'KDP ösztöndíj'!E3","v":0}]
[]
["Fokozatmegszerzési díj"]
[]
["Projektben résztvevő ",null,"Az elszámolt időszak",null,"Pénzügyi teljesítés időpontja","Projektre elszámolt fokozat megszerzési díj járulékok nélkül (Ft)",null,null,"Projektre elszámolt fokozatmegszerzési díj járuléka (Ft)",null,null,"Projektre elszámolt fokozat megszerzési díj járulékokkal együtt összesen(Ft)"]
["neve","státusza\n","kezdete (dátum)","vége (dátum)",null,"Támogatás","Saját forrás","Egyéb forrás","Támogatás","Saját forrás","Egyéb forrás","Támogatás","Saját forrás","Egyéb forrás"]
{"$rows_empty":36}
["Összesen:",{"$nulls":4},{"$f":"SUM(F9:F43)","v":0},0,0,0,0,0,{"$f":"SUM(L9:L43)","v":0},0,0]
[]
["* Amennyiben a pályázati felhívás/útmutató megengedi a szabadság, betegszabadság, ünnepnap elszámolását a projekt terhére, úgy szíveskedjenek a feltüntetett munkaórákba beleszámítani ezek idejét is!"]

{"sheet":" anyagköltség ","index":5,"n_rows":37,"n_cols":16,"rows_kept":37,"cut":false,"hidden":false,"merged":[[36,0,36,15],[33,0,33,15],[34,0,34,8],[4,0,4,15],[6,0,7,0],[6,2,7,2],[6,3,7,3],[6,4,7,4],[6,5,7,5],[6,6,7,6],[6,7,7,7],[6,8,7,8],[6,9,6,11],[6,12,6,15],[6,1,7,1],[1,3,1,10],[2,3,2,10],[0,0,0,2],[1,0,1,2],[2,0,2,2],[0,3,0,10]]}
["Kedvezményezett neve:",null,null,{"$f":"'KDP ösztöndíj'!E1","v":0}]
["Szerződésszám:",null,null,{"$f":"'KDP ösztöndíj'!E2","v":0}]
["Az elszámolással érintett időszak kezdete és vége:",null,null,{"$f":"'KDP ösztöndíj'!E3","v":0}]
[]
["Anyagköltség"]
[]
["Sor-szám","KDP ösztöndíjas neve*","Számviteli bizonylat kiállítójának neve","Adószáma","Számviteli bizonylat sorszáma","Kiállítás kelte","Teljesítés dátuma","Pénzügyi teljesítés időpontja","Gazdasági esemény rövid leírása","Összege (Ft)",null,null,"Projekt terhére elszámolt költségek (Ft)"]
["szám",{"$nulls":8},"Bruttó","Nettó","ÁFA","Támogatás","Saját forrás","Egyéb f.","Összesen"]
[{"$nulls":15},{"$f":"SUM(M9:O9)","v":0}]
[{"$nulls":15},{"$f":"SUM(M10:O10)","v":0}]
[{"$nulls":15},0]
[{"$nulls":15},0]
[{"$nulls":15},0]
[{"$nulls":15},0]
[{"$nulls":15},0]
[{"$nulls":15},0]
[{"$nulls":15},0]
[{"$nulls":15},0]
[{"$nulls":15},0]
[{"$nulls":15},0]
[{"$nulls":15},0]
[{"$nulls":15},0]
[{"$nulls":15},0]
[{"$nulls":15},0]
[{"$nulls":15},0]
[{"$nulls":15},0]
[{"$nulls":15},0]
[{"$nulls":15},0]
[{"$nulls":15},0]
[{"$nulls":15},0]
[{"$nulls":15},0]
[{"$nulls":15},0]
[{"$nulls":15},0]
[]
[" Összesen",{"$nulls":8},{"$f":"SUM(J9:J33)","v":0},{"$f":"SUM(K9:K33)","v":0},0,0,0,0,0]
[]
["*Azon KDP ösztöndíjas nevét kérjük feltütni, mely kutatásához az adott tétel kapcsolódik. "]

{"sheet":"igénybe vett szolg","index":6,"n_rows":30,"n_cols":16,"rows_kept":30,"cut":false,"hidden":false,"merged":[[29,1,29,17],[6,9,6,11],[6,8,7,8],[6,7,7,7],[26,0,26,15],[6,12,6,15],[6,3,7,3],[6,4,7,4],[6,1,7,1],[27,0,27,8],[6,5,7,5],[6,6,7,6],[6,2,7,2],[6,0,7,0],[4,0,4,15],[0,0,0,2],[0,3,0,10],[1,0,1,2],[1,3,1,10],[2,0,2,2],[2,3,2,10]]}
["Kedvezményezett neve:",null,null,{"$f":"'KDP ösztöndíj'!E1","v":0}]
["Szerződésszám:",null,null,{"$f":"'KDP ösztöndíj'!E2","v":0}]
["Az elszámolással érintett időszak kezdete és vége:",null,null,{"$f":"'KDP ösztöndíj'!E3","v":0}]
[]
["Igénybe vett szolgáltatások"]
[]
["Sor-szám","KDP ösztöndíjas neve*","Számviteli bizonylat kiállítójának neve","Adószáma","Számviteli bizonylat sorszáma","Kiállítás kelte","Teljesítés dátuma","Pénzügyi teljesítés időpontja","Gazdasági esemény rövid leírása","Összege (Ft)",null,null,"Projekt terhére elszámolt költségek (Ft)"]
["szám",{"$nulls":8},"Bruttó","Nettó","ÁFA","Támogatás","Saját forrás","Egyéb f.","Összesen"]
[{"$nulls":15},{"$f":"SUM(M9:O9)","v":0}]
[{"$nulls":15},{"$f":"SUM(M10:O10)","v":0}]
[{"$nulls":15},{"$f":"SUM(M11:O11)","v":0}]
[{"$nulls":15},0]
[{"$nulls":15},0]
[{"$nulls":15},0]
[{"$nulls":15},0]
[{"$nulls":15},0]
[{"$nulls":15},0]
[{"$nulls":15},0]
[{"$nulls":15},0]
[{"$nulls":15},0]
[{"$nulls":15},0]
[{"$nulls":15},0]
[{"$nulls":15},0]
[{"$nulls":15},0]
[{"$nulls":15},0]
[{"$nulls":15},0]
[]
[" Összesen",{"$nulls":8},{"$f":"SUM(J9:J26)","v":0},0,0,0,0,0,0]
[]
[null,"*Azon KDP ösztöndíjas nevét kérjük feltütni, mely kutatásához az adott tétel kapcsolódik. "]

{"sheet":"egyéb szolgáltatások","index":7,"n_rows":27,"n_cols":16,"rows_kept":27,"cut":false,"hidden":false,"merged":[[26,0,26,15],[6,6,7,6],[6,4,7,4],[6,7,7,7],[4,0,4,15],[6,0,7,0],[6,2,7,2],[6,3,7,3],[6,12,6,15],[24,0,24,7],[6,8,7,8],[6,5,7,5],[23,0,23,15],[6,9,6,11],[6,1,7,1],[0,0,0,2],[0,3,0,10],[1,0,1,2],[1,3,1,10],[2,0,2,2],[2,3,2,10]]}
["Kedvezményezett neve:",null,null,{"$f":"'KDP ösztöndíj'!E1","v":0}]
["Szerződésszám:",null,null,{"$f":"'KDP ösztöndíj'!E2","v":0}]
["Az elszámolással érintett időszak kezdete és vége:",null,null,{"$f":"'KDP ösztöndíj'!E3","v":0}]
[]
["EGYÉB SZOLGÁLTATÁSOK"]
[]
["Sor-szám","KDP ösztöndíjas neve*","Számviteli bizonylat kiállítójának neve","Adószáma","Számviteli bizonylat sorszáma","Kiállítás kelte","Teljesítés dátuma","Pénzügyi teljesítés időpontja","Gazdasági esemény rövid leírása","Összege (Ft)",null,null,"Projekt terhére elszámolt költségek (Ft)"]
["szám",{"$nulls":8},"Bruttó","Nettó","ÁFA","Támogatás","Saját forrás","Egyéb f.","Összesen"]
[{"$nulls":15},{"$f":"SUM(M9:O9)","v":0}]
[{"$nulls":15},{"$f":"SUM(M10:O10)","v":0}]
[{"$nulls":15},0]
[{"$nulls":15},0]
[{"$nulls":15},0]
[{"$nulls":15},0]
[{"$nulls":15},0]
[{"$nulls":15},0]
[{"$nulls":15},0]
[{"$nulls":15},0]
[{"$nulls":15},0]
[{"$nulls":15},0]
[{"$nulls":15},0]
[{"$nulls":15},0]
[{"$nulls":15},0]
[]
[" Összesen",{"$nulls":7},{"$f":"SUM(I9:I23)","v":0},0,0,0,0,0,0,0]
[]
["*Azon KDP ösztöndíjas nevét kérjük feltütni, mely kutatásához az adott tétel kapcsolódik. "]

{"sheet":"immat jav beszerz","index":8,"n_rows":28,"n_cols":19,"rows_kept":28,"cut":false,"hidden":false,"merged":[[27,0,27,18],[6,0,7,0],[6,2,7,2],[6,3,7,3],[4,0,4,18],[6,4,7,4],[6,5,7,5],[6,6,7,6],[6,7,7,7],[6,1,7,1],[25,0,25,11],[24,0,24,18],[6,10,7,10],[6,8,6,9],[6,11,7,11],[6,12,6,14],[6,15,6,18],[0,0,0,2],[0,3,0,10],[1,0,1,2],[1,3,1,10],[2,0,2,2],[2,3,2,10]]}
["Kedvezményezett neve:",null,null,{"$f":"'KDP ösztöndíj'!E1","v":0}]
["Szerződésszám:",null,null,{"$f":"'KDP ösztöndíj'!E2","v":0}]
["Az elszámolással érintett időszak kezdete és vége:",null,null,{"$f":"'KDP ösztöndíj'!E3","v":0}]
[]
["IMMATERIÁLIS JAVAK BESZERZÉSE"]
[]
["Sor-szám","KDP ösztöndíjas neve*","Számviteli bizonylat kiállítójának neve","Adószáma","Számviteli bizonylat sorszáma","Kiállítás kelte","Teljesítés dátuma","Pénzügyi teljesítés időpontja","Amortizációnál az elszámolt időszak",null,"amortizá-ciós kulcs %","Gazdasági esemény rövid leírása","Összege (Ft)",null,null,"Projekt terhére elszámolt költségek (Ft)"]
["szám",{"$nulls":7},"kezdete (dátum)","vége (dátum)",null,null,"Bruttó","Nettó","ÁFA","Támogatás","Saját forrás","Egyéb f.","Összesen"]
[{"$nulls":18},{"$f":"SUM(P9:R9)","v":0}]
[{"$nulls":18},{"$f":"SUM(P10:R10)","v":0}]
[{"$nulls":18},0]
[{"$nulls":18},0]
[{"$nulls":18},0]
[{"$nulls":18},0]
[{"$nulls":18},0]
[{"$nulls":18},0]
[{"$nulls":18},0]
[{"$nulls":18},0]
[{"$nulls":18},0]
[{"$nulls":18},0]
[{"$nulls":18},0]
[{"$nulls":18},0]
[{"$nulls":18},0]
[{"$nulls":18},0]
[]
["Összesen",{"$nulls":11},{"$f":"SUM(M9:M25)","v":0},{"$f":"SUM(N9:N25)","v":0},0,{"$f":"SUM(P9:P25)","v":0},{"$f":"SUM(Q9:Q25)","v":0},0,0]
[]
["*Azon KDP ösztöndíjas nevét kérjük feltütni, mely kutatásához az adott tétel kapcsolódik. "]

{"sheet":"műszaki berendezések","index":9,"n_rows":27,"n_cols":19,"rows_kept":27,"cut":false,"hidden":false,"merged":[[26,0,26,16],[4,0,4,18],[6,0,7,0],[6,1,7,1],[6,3,7,3],[6,4,7,4],[6,5,7,5],[6,6,7,6],[6,7,7,7],[6,8,6,9],[6,15,6,18],[23,0,23,18],[6,10,7,10],[6,2,7,2],[24,0,24,11],[6,11,7,11],[6,12,6,14],[0,0,0,2],[0,3,0,10],[1,0,1,2],[1,3,1,10],[2,0,2,2],[2,3,2,10]]}
["Kedvezményezett neve:",null,null,{"$f":"'KDP ösztöndíj'!E1","v":0}]
["Szerződésszám:",null,null,{"$f":"'KDP ösztöndíj'!E2","v":0}]
["Az elszámolással érintett időszak kezdete és vége:",null,null,{"$f":"'KDP ösztöndíj'!E3","v":0}]
[]
["Műszaki berendezések, gépek, járművek"]
[]
["Sor-szám","KDP ösztöndíjas neve*","Számviteli bizonylat kiállítójának neve","Adószáma","Számviteli bizonylat sorszáma","Kiállítás kelte","Teljesítés dátuma","Pénzügyi teljesítés időpontja","Amortizációnál az elszámolt időszak",null,"amortizá-ciós kulcs %","Gazdasági esemény rövid leírása","Összege (Ft)",null,null,"Projekt terhére elszámolt költségek (Ft)"]
["szám",{"$nulls":7},"kezdete (dátum)","vége (dátum)",null,null,"Bruttó","Nettó","ÁFA","Támogatás","Saját forrás","Egyéb f.","Összesen"]
[{"$nulls":18},{"$f":"SUM(P9:R9)","v":0}]
[{"$nulls":18},{"$f":"SUM(P10:R10)","v":0}]
[{"$nulls":18},0]
[{"$nulls":18},0]
[{"$nulls":18},0]
[{"$nulls":18},0]
[{"$nulls":18},0]
[{"$nulls":18},0]
[{"$nulls":18},0]
[{"$nulls":18},0]
[{"$nulls":18},0]
[{"$nulls":18},0]
[{"$nulls":18},0]
[{"$nulls":18},0]
[{"$nulls":18},0]
[]
["Összesen",{"$nulls":11},{"$f":"SUM(M9:M24)","v":0},{"$f":"SUM(N9:N24)","v":0},{"$f":"SUM(O9:O24)","v":0},{"$f":"SUM(P9:P24)","v":0},{"$f":"SUM(Q9:Q24)","v":0},0,0]
[]
["*Azon KDP ösztöndíjas nevét kérjük feltütni, mely kutatásához az adott tétel kapcsolódik. "]

{"sheet":"egyéb berendezések","index":10,"n_rows":28,"n_cols":19,"rows_kept":28,"cut":false,"hidden":false,"merged":[[27,1,27,17],[6,10,7,10],[6,11,7,11],[6,12,6,14],[6,15,6,18],[23,0,23,18],[6,1,7,1],[24,0,24,11],[0,0,0,2],[0,3,0,10],[1,0,1,2],[1,3,1,10],[2,0,2,2],[2,3,2,10],[4,0,4,18],[6,0,7,0],[6,2,7,2],[6,3,7,3],[6,4,7,4],[6,5,7,5],[6,6,7,6],[6,7,7,7],[6,8,6,9]]}
["Kedvezményezett neve:",null,null,{"$f":"'KDP ösztöndíj'!E1","v":0}]
["Szerződésszám:",null,null,{"$f":"'KDP ösztöndíj'!E2","v":0}]
["Az elszámolással érintett időszak kezdete és vége:",null,null,{"$f":"'KDP ösztöndíj'!E3","v":0}]
[]
["Egyéb  berendezések, felszerelések, járművek"]
[]
["Sor-szám","KDP ösztöndíjas neve*","Számviteli bizonylat kiállítójának neve","Adószáma","Számviteli bizonylat sorszáma","Kiállítás kelte","Teljesítés dátuma","Pénzügyi teljesítés időpontja","Amortizációnál az elszámolt időszak",null,"amortizá-ciós kulcs %","Gazdasági esemény rövid leírása","Összege (Ft)",null,null,"Projekt terhére elszámolt költségek (Ft)"]
["szám",{"$nulls":7},"kezdete (dátum)","vége (dátum)",null,null,"Bruttó","Nettó","ÁFA","Támogatás","Saját forrás","Egyéb f.","Összesen"]
[{"$nulls":18},{"$f":"SUM(P9:R9)","v":0}]
[{"$nulls":18},{"$f":"SUM(P10:R10)","v":0}]
[{"$nulls":18},{"$f":"SUM(P11:R11)","v":0}]
[{"$nulls":18},0]
[{"$nulls":18},0]
[{"$nulls":18},0]
[{"$nulls":18},0]
[{"$nulls":18},0]
[{"$nulls":18},0]
[{"$nulls":18},0]
[{"$nulls":18},0]
[{"$nulls":18},0]
[{"$nulls":18},0]
[{"$nulls":18},0]
[{"$nulls":18},0]
[]
["Összesen",{"$nulls":11},{"$f":"SUM(M9:M24)","v":0},{"$f":"SUM(N9:N24)","v":0},{"$f":"SUM(O9:O24)","v":0},{"$f":"SUM(P9:P24)","v":0},{"$f":"SUM(Q9:Q24)","v":0},0,0]
[]
[]
[null,"*Azon KDP ösztöndíjas nevét kérjük feltütni, mely kutatásához az adott tétel kapcsolódik. "]

{"sheet":"Ösztöndíjas felhasznált költ","index":11,"n_rows":56,"n_cols":2,"rows_kept":56,"cut":false,"hidden":false,"merged":[[4,0,4,1]]}
["Kedvezményezett neve:",{"$f":"'KDP ösztöndíj'!E1","v":0}]
["Szerződésszám:",{"$f":"'KDP ösztöndíj'!E2","v":0}]
["Az elszámolással érintett időszak kezdete és vége:",{"$f":"'KDP ösztöndíj'!E3","v":0}]
[]
["KDP ösztöndíjas kutatásához felhasznált költségek - Összesítő"]
[]
["KDP Ösztöndíjas neve","Elszámolt intézményi támogatás"]
[null,{"$f":"SUM(((SUMIF(' anyagköltség '!$B$9:$B$33,'Ösztöndíjas felhasznált költ'!A8,' anyagköltség '!$P$9:$P$33)+((SUMIF('igénybe vett szolg'!$B$9:$B$26,'Ösztöndíjas felhasznált költ'!A8,'igénybe vett szolg'!$P$9:$P$26))+((SUMIF('egyéb szolgáltatások'!$B$9:$B$23,'Ösztöndíjas felhasznált költ'!A8,'egyéb szolgáltatások'!$P$9:$P$23))+((SUMIF('immat jav beszerz'!$B$9:$B$23,'Ösztöndíjas felhasznált költ'!A8,'immat jav beszerz'!$S$9:$S$24))+((SUMIF('műszaki berendezések'!$B$9:$B$23,'Ösztöndíjas felhasznált költ'!A8,'műszaki berendezések'!$S$9:$S$24))+((SUMIF('egyéb berendezések'!$B$9:$B$23,'Ösztöndíjas felhasznált költ'!A8,'egyéb berendezések'!$S$9:$S$24))))))))))","v":0}]
[null,{"$f":"SUM(((SUMIF(' anyagköltség '!$B$9:$B$33,'Ösztöndíjas felhasznált költ'!A9,' anyagköltség '!$P$9:$P$33)+((SUMIF('igénybe vett szolg'!$B$9:$B$26,'Ösztöndíjas felhasznált költ'!A9,'igénybe vett szolg'!$P$9:$P$26))+((SUMIF('egyéb szolgáltatások'!$B$9:$B$23,'Ösztöndíjas felhasznált költ'!A9,'egyéb szolgáltatások'!$P$9:$P$23))+((SUMIF('immat jav beszerz'!$B$9:$B$23,'Ösztöndíjas felhasznált költ'!A9,'immat jav beszerz'!$S$9:$S$24))+((SUMIF('műszaki berendezések'!$B$9:$B$23,'Ösztöndíjas felhasznált költ'!A9,'műszaki berendezések'!$S$9:$S$24))+((SUMIF('egyéb berendezések'!$B$9:$B$23,'Ösztöndíjas felhasznált költ'!A9,'egyéb berendezések'!$S$9:$S$24))))))))))","v":0}]
[null,{"$f":"SUM(((SUMIF(' anyagköltség '!$B$9:$B$33,'Ösztöndíjas felhasznált költ'!A10,' anyagköltség '!$P$9:$P$33)+((SUMIF('igénybe vett szolg'!$B$9:$B$26,'Ösztöndíjas felhasznált költ'!A10,'igénybe vett szolg'!$P$9:$P$26))+((SUMIF('egyéb szolgáltatások'!$B$9:$B$23,'Ösztöndíjas felhasznált költ'!A10,'egyéb szolgáltatások'!$P$9:$P$23))+((SUMIF('immat jav beszerz'!$B$9:$B$23,'Ösztöndíjas felhasznált költ'!A10,'immat jav beszerz'!$S$9:$S$24))+((SUMIF('műszaki berendezések'!$B$9:$B$23,'Ösztöndíjas felhasznált költ'!A10,'műszaki berendezések'!$S$9:$S$24))+((SUMIF('egyéb berendezések'!$B$9:$B$23,'Ösztöndíjas felhasznált költ'!A10,'egyéb berendezések'!$S$9:$S$24))))))))))","v":0}]
[null,{"$f":"SUM(((SUMIF(' anyagköltség '!$B$9:$B$33,'Ösztöndíjas felhasznált költ'!A11,' anyagköltség '!$P$9:$P$33)+((SUMIF('igénybe vett szolg'!$B$9:$B$26,'Ösztöndíjas felhasznált költ'!A11,'igénybe vett szolg'!$P$9:$P$26))+((SUMIF('egyéb szolgáltatások'!$B$9:$B$23,'Ösztöndíjas felhasznált költ'!A11,'egyéb szolgáltatások'!$P$9:$P$23))+((SUMIF('immat jav beszerz'!$B$9:$B$23,'Ösztöndíjas felhasznált költ'!A11,'immat jav beszerz'!$S$9:$S$24))+((SUMIF('műszaki berendezések'!$B$9:$B$23,'Ösztöndíjas felhasznált költ'!A11,'műszaki berendezések'!$S$9:$S$24))+((SUMIF('egyéb berendezések'!$B$9:$B$23,'Ösztöndíjas felhasznált költ'!A11,'egyéb berendezések'!$S$9:$S$24))))))))))","v":0}]
[null,{"$f":"SUM(((SUMIF(' anyagköltség '!$B$9:$B$33,'Ösztöndíjas felhasznált költ'!A12,' anyagköltség '!$P$9:$P$33)+((SUMIF('igénybe vett szolg'!$B$9:$B$26,'Ösztöndíjas felhasznált költ'!A12,'igénybe vett szolg'!$P$9:$P$26))+((SUMIF('egyéb szolgáltatások'!$B$9:$B$23,'Ösztöndíjas felhasznált költ'!A12,'egyéb szolgáltatások'!$P$9:$P$23))+((SUMIF('immat jav beszerz'!$B$9:$B$23,'Ösztöndíjas felhasznált költ'!A12,'immat jav beszerz'!$S$9:$S$24))+((SUMIF('műszaki berendezések'!$B$9:$B$23,'Ösztöndíjas felhasznált költ'!A12,'műszaki berendezések'!$S$9:$S$24))+((SUMIF('egyéb berendezések'!$B$9:$B$23,'Ösztöndíjas felhasznált költ'!A12,'egyéb berendezések'!$S$9:$S$24))))))))))","v":0}]
[null,{"$f":"SUM(((SUMIF(' anyagköltség '!$B$9:$B$33,'Ösztöndíjas felhasznált költ'!A13,' anyagköltség '!$P$9:$P$33)+((SUMIF('igénybe vett szolg'!$B$9:$B$26,'Ösztöndíjas felhasznált költ'!A13,'igénybe vett szolg'!$P$9:$P$26))+((SUMIF('egyéb szolgáltatások'!$B$9:$B$23,'Ösztöndíjas felhasznált költ'!A13,'egyéb szolgáltatások'!$P$9:$P$23))+((SUMIF('immat jav beszerz'!$B$9:$B$23,'Ösztöndíjas felhasznált költ'!A13,'immat jav beszerz'!$S$9:$S$24))+((SUMIF('műszaki berendezések'!$B$9:$B$23,'Ösztöndíjas felhasznált költ'!A13,'műszaki berendezések'!$S$9:$S$24))+((SUMIF('egyéb berendezések'!$B$9:$B$23,'Ösztöndíjas felhasznált költ'!A13,'egyéb berendezések'!$S$9:$S$24))))))))))","v":0}]
[null,{"$f":"SUM(((SUMIF(' anyagköltség '!$B$9:$B$33,'Ösztöndíjas felhasznált költ'!A14,' anyagköltség '!$P$9:$P$33)+((SUMIF('igénybe vett szolg'!$B$9:$B$26,'Ösztöndíjas felhasznált költ'!A14,'igénybe vett szolg'!$P$9:$P$26))+((SUMIF('egyéb szolgáltatások'!$B$9:$B$23,'Ösztöndíjas felhasznált költ'!A14,'egyéb szolgáltatások'!$P$9:$P$23))+((SUMIF('immat jav beszerz'!$B$9:$B$23,'Ösztöndíjas felhasznált költ'!A14,'immat jav beszerz'!$S$9:$S$24))+((SUMIF('műszaki berendezések'!$B$9:$B$23,'Ösztöndíjas felhasznált költ'!A14,'műszaki berendezések'!$S$9:$S$24))+((SUMIF('egyéb berendezések'!$B$9:$B$23,'Ösztöndíjas felhasznált költ'!A14,'egyéb berendezések'!$S$9:$S$24))))))))))","v":0}]
[null,{"$f":"SUM(((SUMIF(' anyagköltség '!$B$9:$B$33,'Ösztöndíjas felhasznált költ'!A15,' anyagköltség '!$P$9:$P$33)+((SUMIF('igénybe vett szolg'!$B$9:$B$26,'Ösztöndíjas felhasznált költ'!A15,'igénybe vett szolg'!$P$9:$P$26))+((SUMIF('egyéb szolgáltatások'!$B$9:$B$23,'Ösztöndíjas felhasznált költ'!A15,'egyéb szolgáltatások'!$P$9:$P$23))+((SUMIF('immat jav beszerz'!$B$9:$B$23,'Ösztöndíjas felhasznált költ'!A15,'immat jav beszerz'!$S$9:$S$24))+((SUMIF('műszaki berendezések'!$B$9:$B$23,'Ösztöndíjas felhasznált költ'!A15,'műszaki berendezések'!$S$9:$S$24))+((SUMIF('egyéb berendezések'!$B$9:$B$23,'Ösztöndíjas felhasznált költ'!A15,'egyéb berendezések'!$S$9:$S$24))))))))))","v":0}]
[null,{"$f":"SUM(((SUMIF(' anyagköltség '!$B$9:$B$33,'Ösztöndíjas felhasznált költ'!A16,' anyagköltség '!$P$9:$P$33)+((SUMIF('igénybe vett szolg'!$B$9:$B$26,'Ösztöndíjas felhasznált költ'!A16,'igénybe vett szolg'!$P$9:$P$26))+((SUMIF('egyéb szolgáltatások'!$B$9:$B$23,'Ösztöndíjas felhasznált költ'!A16,'egyéb szolgáltatások'!$P$9:$P$23))+((SUMIF('immat jav beszerz'!$B$9:$B$23,'Ösztöndíjas felhasznált költ'!A16,'immat jav beszerz'!$S$9:$S$24))+((SUMIF('műszaki berendezések'!$B$9:$B$23,'Ösztöndíjas felhasznált költ'!A16,'műszaki berendezések'!$S$9:$S$24))+((SUMIF('egyéb berendezések'!$B$9:$B$23,'Ösztöndíjas felhasznált költ'!A16,'egyéb berendezések'!$S$9:$S$24))))))))))","v":0}]
[null,{"$f":"SUM(((SUMIF(' anyagköltség '!$B$9:$B$33,'Ösztöndíjas felhasznált költ'!A17,' anyagköltség '!$P$9:$P$33)+((SUMIF('igénybe vett szolg'!$B$9:$B$26,'Ösztöndíjas felhasznált költ'!A17,'igénybe vett szolg'!$P$9:$P$26))+((SUMIF('egyéb szolgáltatások'!$B$9:$B$23,'Ösztöndíjas felhasznált költ'!A17,'egyéb szolgáltatások'!$P$9:$P$23))+((SUMIF('immat jav beszerz'!$B$9:$B$23,'Ösztöndíjas felhasznált költ'!A17,'immat jav beszerz'!$S$9:$S$24))+((SUMIF('műszaki berendezések'!$B$9:$B$23,'Ösztöndíjas felhasznált költ'!A17,'műszaki berendezések'!$S$9:$S$24))+((SUMIF('egyéb berendezések'!$B$9:$B$23,'Ösztöndíjas felhasznált költ'!A17,'egyéb berendezések'!$S$9:$S$24))))))))))","v":0}]
[null,{"$f":"SUM(((SUMIF(' anyagköltség '!$B$9:$B$33,'Ösztöndíjas felhasznált költ'!A18,' anyagköltség '!$P$9:$P$33)+((SUMIF('igénybe vett szolg'!$B$9:$B$26,'Ösztöndíjas felhasznált költ'!A18,'igénybe vett szolg'!$P$9:$P$26))+((SUMIF('egyéb szolgáltatások'!$B$9:$B$23,'Ösztöndíjas felhasznált költ'!A18,'egyéb szolgáltatások'!$P$9:$P$23))+((SUMIF('immat jav beszerz'!$B$9:$B$23,'Ösztöndíjas felhasznált költ'!A18,'immat jav beszerz'!$S$9:$S$24))+((SUMIF('műszaki berendezések'!$B$9:$B$23,'Ösztöndíjas felhasznált költ'!A18,'műszaki berendezések'!$S$9:$S$24))+((SUMIF('egyéb berendezések'!$B$9:$B$23,'Ösztöndíjas felhasznált költ'!A18,'egyéb berendezések'!$S$9:$S$24))))))))))","v":0}]
[null,{"$f":"SUM(((SUMIF(' anyagköltség '!$B$9:$B$33,'Ösztöndíjas felhasznált költ'!A19,' anyagköltség '!$P$9:$P$33)+((SUMIF('igénybe vett szolg'!$B$9:$B$26,'Ösztöndíjas felhasznált költ'!A19,'igénybe vett szolg'!$P$9:$P$26))+((SUMIF('egyéb szolgáltatások'!$B$9:$B$23,'Ösztöndíjas felhasznált költ'!A19,'egyéb szolgáltatások'!$P$9:$P$23))+((SUMIF('immat jav beszerz'!$B$9:$B$23,'Ösztöndíjas felhasznált költ'!A19,'immat jav beszerz'!$S$9:$S$24))+((SUMIF('műszaki berendezések'!$B$9:$B$23,'Ösztöndíjas felhasznált költ'!A19,'műszaki berendezések'!$S$9:$S$24))+((SUMIF('egyéb berendezések'!$B$9:$B$23,'Ösztöndíjas felhasznált költ'!A19,'egyéb berendezések'!$S$9:$S$24))))))))))","v":0}]
[null,{"$f":"SUM(((SUMIF(' anyagköltség '!$B$9:$B$33,'Ösztöndíjas felhasznált költ'!A20,' anyagköltség '!$P$9:$P$33)+((SUMIF('igénybe vett szolg'!$B$9:$B$26,'Ösztöndíjas felhasznált költ'!A20,'igénybe vett szolg'!$P$9:$P$26))+((SUMIF('egyéb szolgáltatások'!$B$9:$B$23,'Ösztöndíjas felhasznált költ'!A20,'egyéb szolgáltatások'!$P$9:$P$23))+((SUMIF('immat jav beszerz'!$B$9:$B$23,'Ösztöndíjas felhasznált költ'!A20,'immat jav beszerz'!$S$9:$S$24))+((SUMIF('műszaki berendezések'!$B$9:$B$23,'Ösztöndíjas felhasznált költ'!A20,'műszaki berendezések'!$S$9:$S$24))+((SUMIF('egyéb berendezések'!$B$9:$B$23,'Ösztöndíjas felhasznált költ'!A20,'egyéb berendezések'!$S$9:$S$24))))))))))","v":0}]
[null,{"$f":"SUM(((SUMIF(' anyagköltség '!$B$9:$B$33,'Ösztöndíjas felhasznált költ'!A21,' anyagköltség '!$P$9:$P$33)+((SUMIF('igénybe vett szolg'!$B$9:$B$26,'Ösztöndíjas felhasznált költ'!A21,'igénybe vett szolg'!$P$9:$P$26))+((SUMIF('egyéb szolgáltatások'!$B$9:$B$23,'Ösztöndíjas felhasznált költ'!A21,'egyéb szolgáltatások'!$P$9:$P$23))+((SUMIF('immat jav beszerz'!$B$9:$B$23,'Ösztöndíjas felhasznált költ'!A21,'immat jav beszerz'!$S$9:$S$24))+((SUMIF('műszaki berendezések'!$B$9:$B$23,'Ösztöndíjas felhasznált költ'!A21,'műszaki berendezések'!$S$9:$S$24))+((SUMIF('egyéb berendezések'!$B$9:$B$23,'Ösztöndíjas felhasznált költ'!A21,'egyéb berendezések'!$S$9:$S$24))))))))))","v":0}]
[null,{"$f":"SUM(((SUMIF(' anyagköltség '!$B$9:$B$33,'Ösztöndíjas felhasznált költ'!A22,' anyagköltség '!$P$9:$P$33)+((SUMIF('igénybe vett szolg'!$B$9:$B$26,'Ösztöndíjas felhasznált költ'!A22,'igénybe vett szolg'!$P$9:$P$26))+((SUMIF('egyéb szolgáltatások'!$B$9:$B$23,'Ösztöndíjas felhasznált költ'!A22,'egyéb szolgáltatások'!$P$9:$P$23))+((SUMIF('immat jav beszerz'!$B$9:$B$23,'Ösztöndíjas felhasznált költ'!A22,'immat jav beszerz'!$S$9:$S$24))+((SUMIF('műszaki berendezések'!$B$9:$B$23,'Ösztöndíjas felhasznált költ'!A22,'műszaki berendezések'!$S$9:$S$24))+((SUMIF('egyéb berendezések'!$B$9:$B$23,'Ösztöndíjas felhasznált költ'!A22,'egyéb berendezések'!$S$9:$S$24))))))))))","v":0}]
[null,{"$f":"SUM(((SUMIF(' anyagköltség '!$B$9:$B$33,'Ösztöndíjas felhasznált költ'!A23,' anyagköltség '!$P$9:$P$33)+((SUMIF('igénybe vett szolg'!$B$9:$B$26,'Ösztöndíjas felhasznált költ'!A23,'igénybe vett szolg'!$P$9:$P$26))+((SUMIF('egyéb szolgáltatások'!$B$9:$B$23,'Ösztöndíjas felhasznált költ'!A23,'egyéb szolgáltatások'!$P$9:$P$23))+((SUMIF('immat jav beszerz'!$B$9:$B$23,'Ösztöndíjas felhasznált költ'!A23,'immat jav beszerz'!$S$9:$S$24))+((SUMIF('műszaki berendezések'!$B$9:$B$23,'Ösztöndíjas felhasznált költ'!A23,'műszaki berendezések'!$S$9:$S$24))+((SUMIF('egyéb berendezések'!$B$9:$B$23,'Ösztöndíjas felhasznált költ'!A23,'egyéb berendezések'!$S$9:$S$24))))))))))","v":0}]
[null,{"$f":"SUM(((SUMIF(' anyagköltség '!$B$9:$B$33,'Ösztöndíjas felhasznált költ'!A24,' anyagköltség '!$P$9:$P$33)+((SUMIF('igénybe vett szolg'!$B$9:$B$26,'Ösztöndíjas felhasznált költ'!A24,'igénybe vett szolg'!$P$9:$P$26))+((SUMIF('egyéb szolgáltatások'!$B$9:$B$23,'Ösztöndíjas felhasznált költ'!A24,'egyéb szolgáltatások'!$P$9:$P$23))+((SUMIF('immat jav beszerz'!$B$9:$B$23,'Ösztöndíjas felhasznált költ'!A24,'immat jav beszerz'!$S$9:$S$24))+((SUMIF('műszaki berendezések'!$B$9:$B$23,'Ösztöndíjas felhasznált költ'!A24,'műszaki berendezések'!$S$9:$S$24))+((SUMIF('egyéb berendezések'!$B$9:$B$23,'Ösztöndíjas felhasznált költ'!A24,'egyéb berendezések'!$S$9:$S$24))))))))))","v":0}]
[null,{"$f":"SUM(((SUMIF(' anyagköltség '!$B$9:$B$33,'Ösztöndíjas felhasznált költ'!A25,' anyagköltség '!$P$9:$P$33)+((SUMIF('igénybe vett szolg'!$B$9:$B$26,'Ösztöndíjas felhasznált költ'!A25,'igénybe vett szolg'!$P$9:$P$26))+((SUMIF('egyéb szolgáltatások'!$B$9:$B$23,'Ösztöndíjas felhasznált költ'!A25,'egyéb szolgáltatások'!$P$9:$P$23))+((SUMIF('immat jav beszerz'!$B$9:$B$23,'Ösztöndíjas felhasznált költ'!A25,'immat jav beszerz'!$S$9:$S$24))+((SUMIF('műszaki berendezések'!$B$9:$B$23,'Ösztöndíjas felhasznált költ'!A25,'műszaki berendezések'!$S$9:$S$24))+((SUMIF('egyéb berendezések'!$B$9:$B$23,'Ösztöndíjas felhasznált költ'!A25,'egyéb berendezések'!$S$9:$S$24))))))))))","v":0}]
[null,{"$f":"SUM(((SUMIF(' anyagköltség '!$B$9:$B$33,'Ösztöndíjas felhasznált költ'!A26,' anyagköltség '!$P$9:$P$33)+((SUMIF('igénybe vett szolg'!$B$9:$B$26,'Ösztöndíjas felhasznált költ'!A26,'igénybe vett szolg'!$P$9:$P$26))+((SUMIF('egyéb szolgáltatások'!$B$9:$B$23,'Ösztöndíjas felhasznált költ'!A26,'egyéb szolgáltatások'!$P$9:$P$23))+((SUMIF('immat jav beszerz'!$B$9:$B$23,'Ösztöndíjas felhasznált költ'!A26,'immat jav beszerz'!$S$9:$S$24))+((SUMIF('műszaki berendezések'!$B$9:$B$23,'Ösztöndíjas felhasznált költ'!A26,'műszaki berendezések'!$S$9:$S$24))+((SUMIF('egyéb berendezések'!$B$9:$B$23,'Ösztöndíjas felhasznált költ'!A26,'egyéb berendezések'!$S$9:$S$24))))))))))","v":0}]
[null,{"$f":"SUM(((SUMIF(' anyagköltség '!$B$9:$B$33,'Ösztöndíjas felhasznált költ'!A27,' anyagköltség '!$P$9:$P$33)+((SUMIF('igénybe vett szolg'!$B$9:$B$26,'Ösztöndíjas felhasznált költ'!A27,'igénybe vett szolg'!$P$9:$P$26))+((SUMIF('egyéb szolgáltatások'!$B$9:$B$23,'Ösztöndíjas felhasznált költ'!A27,'egyéb szolgáltatások'!$P$9:$P$23))+((SUMIF('immat jav beszerz'!$B$9:$B$23,'Ösztöndíjas felhasznált költ'!A27,'immat jav beszerz'!$S$9:$S$24))+((SUMIF('műszaki berendezések'!$B$9:$B$23,'Ösztöndíjas felhasznált költ'!A27,'műszaki berendezések'!$S$9:$S$24))+((SUMIF('egyéb berendezések'!$B$9:$B$23,'Ösztöndíjas felhasznált költ'!A27,'egyéb berendezések'!$S$9:$S$24))))))))))","v":0}]
[null,{"$f":"SUM(((SUMIF(' anyagköltség '!$B$9:$B$33,'Ösztöndíjas felhasznált költ'!A28,' anyagköltség '!$P$9:$P$33)+((SUMIF('igénybe vett szolg'!$B$9:$B$26,'Ösztöndíjas felhasznált költ'!A28,'igénybe vett szolg'!$P$9:$P$26))+((SUMIF('egyéb szolgáltatások'!$B$9:$B$23,'Ösztöndíjas felhasznált költ'!A28,'egyéb szolgáltatások'!$P$9:$P$23))+((SUMIF('immat jav beszerz'!$B$9:$B$23,'Ösztöndíjas felhasznált költ'!A28,'immat jav beszerz'!$S$9:$S$24))+((SUMIF('műszaki berendezések'!$B$9:$B$23,'Ösztöndíjas felhasznált költ'!A28,'műszaki berendezések'!$S$9:$S$24))+((SUMIF('egyéb berendezések'!$B$9:$B$23,'Ösztöndíjas felhasznált költ'!A28,'egyéb berendezések'!$S$9:$S$24))))))))))","v":0}]
[null,{"$f":"SUM(((SUMIF(' anyagköltség '!$B$9:$B$33,'Ösztöndíjas felhasznált költ'!A29,' anyagköltség '!$P$9:$P$33)+((SUMIF('igénybe vett szolg'!$B$9:$B$26,'Ösztöndíjas felhasznált költ'!A29,'igénybe vett szolg'!$P$9:$P$26))+((SUMIF('egyéb szolgáltatások'!$B$9:$B$23,'Ösztöndíjas felhasznált költ'!A29,'egyéb szolgáltatások'!$P$9:$P$23))+((SUMIF('immat jav beszerz'!$B$9:$B$23,'Ösztöndíjas felhasznált költ'!A29,'immat jav beszerz'!$S$9:$S$24))+((SUMIF('műszaki berendezések'!$B$9:$B$23,'Ösztöndíjas felhasznált költ'!A29,'műszaki berendezések'!$S$9:$S$24))+((SUMIF('egyéb berendezések'!$B$9:$B$23,'Ösztöndíjas felhasznált költ'!A29,'egyéb berendezések'!$S$9:$S$24))))))))))","v":0}]
[null,{"$f":"SUM(((SUMIF(' anyagköltség '!$B$9:$B$33,'Ösztöndíjas felhasznált költ'!A30,' anyagköltség '!$P$9:$P$33)+((SUMIF('igénybe vett szolg'!$B$9:$B$26,'Ösztöndíjas felhasznált költ'!A30,'igénybe vett szolg'!$P$9:$P$26))+((SUMIF('egyéb szolgáltatások'!$B$9:$B$23,'Ösztöndíjas felhasznált költ'!A30,'egyéb szolgáltatások'!$P$9:$P$23))+((SUMIF('immat jav beszerz'!$B$9:$B$23,'Ösztöndíjas felhasznált költ'!A30,'immat jav beszerz'!$S$9:$S$24))+((SUMIF('műszaki berendezések'!$B$9:$B$23,'Ösztöndíjas felhasznált költ'!A30,'műszaki berendezések'!$S$9:$S$24))+((SUMIF('egyéb berendezések'!$B$9:$B$23,'Ösztöndíjas felhasznált költ'!A30,'egyéb berendezések'!$S$9:$S$24))))))))))","v":0}]
[null,{"$f":"SUM(((SUMIF(' anyagköltség '!$B$9:$B$33,'Ösztöndíjas felhasznált költ'!A31,' anyagköltség '!$P$9:$P$33)+((SUMIF('igénybe vett szolg'!$B$9:$B$26,'Ösztöndíjas felhasznált költ'!A31,'igénybe vett szolg'!$P$9:$P$26))+((SUMIF('egyéb szolgáltatások'!$B$9:$B$23,'Ösztöndíjas felhasznált költ'!A31,'egyéb szolgáltatások'!$P$9:$P$23))+((SUMIF('immat jav beszerz'!$B$9:$B$23,'Ösztöndíjas felhasznált költ'!A31,'immat jav beszerz'!$S$9:$S$24))+((SUMIF('műszaki berendezések'!$B$9:$B$23,'Ösztöndíjas felhasznált költ'!A31,'műszaki berendezések'!$S$9:$S$24))+((SUMIF('egyéb berendezések'!$B$9:$B$23,'Ösztöndíjas felhasznált költ'!A31,'egyéb berendezések'!$S$9:$S$24))))))))))","v":0}]
[null,{"$f":"SUM(((SUMIF(' anyagköltség '!$B$9:$B$33,'Ösztöndíjas felhasznált költ'!A32,' anyagköltség '!$P$9:$P$33)+((SUMIF('igénybe vett szolg'!$B$9:$B$26,'Ösztöndíjas felhasznált költ'!A32,'igénybe vett szolg'!$P$9:$P$26))+((SUMIF('egyéb szolgáltatások'!$B$9:$B$23,'Ösztöndíjas felhasznált költ'!A32,'egyéb szolgáltatások'!$P$9:$P$23))+((SUMIF('immat jav beszerz'!$B$9:$B$23,'Ösztöndíjas felhasznált költ'!A32,'immat jav beszerz'!$S$9:$S$24))+((SUMIF('műszaki berendezések'!$B$9:$B$23,'Ösztöndíjas felhasznált költ'!A32,'műszaki berendezések'!$S$9:$S$24))+((SUMIF('egyéb berendezések'!$B$9:$B$23,'Ösztöndíjas felhasznált költ'!A32,'egyéb berendezések'!$S$9:$S$24))))))))))","v":0}]
[null,{"$f":"SUM(((SUMIF(' anyagköltség '!$B$9:$B$33,'Ösztöndíjas felhasznált költ'!A33,' anyagköltség '!$P$9:$P$33)+((SUMIF('igénybe vett szolg'!$B$9:$B$26,'Ösztöndíjas felhasznált költ'!A33,'igénybe vett szolg'!$P$9:$P$26))+((SUMIF('egyéb szolgáltatások'!$B$9:$B$23,'Ösztöndíjas felhasznált költ'!A33,'egyéb szolgáltatások'!$P$9:$P$23))+((SUMIF('immat jav beszerz'!$B$9:$B$23,'Ösztöndíjas felhasznált költ'!A33,'immat jav beszerz'!$S$9:$S$24))+((SUMIF('műszaki berendezések'!$B$9:$B$23,'Ösztöndíjas felhasznált költ'!A33,'műszaki berendezések'!$S$9:$S$24))+((SUMIF('egyéb berendezések'!$B$9:$B$23,'Ösztöndíjas felhasznált költ'!A33,'egyéb berendezések'!$S$9:$S$24))))))))))","v":0}]
[null,{"$f":"SUM(((SUMIF(' anyagköltség '!$B$9:$B$33,'Ösztöndíjas felhasznált költ'!A34,' anyagköltség '!$P$9:$P$33)+((SUMIF('igénybe vett szolg'!$B$9:$B$26,'Ösztöndíjas felhasznált költ'!A34,'igénybe vett szolg'!$P$9:$P$26))+((SUMIF('egyéb szolgáltatások'!$B$9:$B$23,'Ösztöndíjas felhasznált költ'!A34,'egyéb szolgáltatások'!$P$9:$P$23))+((SUMIF('immat jav beszerz'!$B$9:$B$23,'Ösztöndíjas felhasznált költ'!A34,'immat jav beszerz'!$S$9:$S$24))+((SUMIF('műszaki berendezések'!$B$9:$B$23,'Ösztöndíjas felhasznált költ'!A34,'műszaki berendezések'!$S$9:$S$24))+((SUMIF('egyéb berendezések'!$B$9:$B$23,'Ösztöndíjas felhasznált költ'!A34,'egyéb berendezések'!$S$9:$S$24))))))))))","v":0}]
[null,{"$f":"SUM(((SUMIF(' anyagköltség '!$B$9:$B$33,'Ösztöndíjas felhasznált költ'!A35,' anyagköltség '!$P$9:$P$33)+((SUMIF('igénybe vett szolg'!$B$9:$B$26,'Ösztöndíjas felhasznált költ'!A35,'igénybe vett szolg'!$P$9:$P$26))+((SUMIF('egyéb szolgáltatások'!$B$9:$B$23,'Ösztöndíjas felhasznált költ'!A35,'egyéb szolgáltatások'!$P$9:$P$23))+((SUMIF('immat jav beszerz'!$B$9:$B$23,'Ösztöndíjas felhasznált költ'!A35,'immat jav beszerz'!$S$9:$S$24))+((SUMIF('műszaki berendezések'!$B$9:$B$23,'Ösztöndíjas felhasznált költ'!A35,'műszaki berendezések'!$S$9:$S$24))+((SUMIF('egyéb berendezések'!$B$9:$B$23,'Ösztöndíjas felhasznált költ'!A35,'egyéb berendezések'!$S$9:$S$24))))))))))","v":0}]
[null,{"$f":"SUM(((SUMIF(' anyagköltség '!$B$9:$B$33,'Ösztöndíjas felhasznált költ'!A36,' anyagköltség '!$P$9:$P$33)+((SUMIF('igénybe vett szolg'!$B$9:$B$26,'Ösztöndíjas felhasznált költ'!A36,'igénybe vett szolg'!$P$9:$P$26))+((SUMIF('egyéb szolgáltatások'!$B$9:$B$23,'Ösztöndíjas felhasznált költ'!A36,'egyéb szolgáltatások'!$P$9:$P$23))+((SUMIF('immat jav beszerz'!$B$9:$B$23,'Ösztöndíjas felhasznált költ'!A36,'immat jav beszerz'!$S$9:$S$24))+((SUMIF('műszaki berendezések'!$B$9:$B$23,'Ösztöndíjas felhasznált költ'!A36,'műszaki berendezések'!$S$9:$S$24))+((SUMIF('egyéb berendezések'!$B$9:$B$23,'Ösztöndíjas felhasznált költ'!A36,'egyéb berendezések'!$S$9:$S$24))))))))))","v":0}]
[null,{"$f":"SUM(((SUMIF(' anyagköltség '!$B$9:$B$33,'Ösztöndíjas felhasznált költ'!A37,' anyagköltség '!$P$9:$P$33)+((SUMIF('igénybe vett szolg'!$B$9:$B$26,'Ösztöndíjas felhasznált költ'!A37,'igénybe vett szolg'!$P$9:$P$26))+((SUMIF('egyéb szolgáltatások'!$B$9:$B$23,'Ösztöndíjas felhasznált költ'!A37,'egyéb szolgáltatások'!$P$9:$P$23))+((SUMIF('immat jav beszerz'!$B$9:$B$23,'Ösztöndíjas felhasznált költ'!A37,'immat jav beszerz'!$S$9:$S$24))+((SUMIF('műszaki berendezések'!$B$9:$B$23,'Ösztöndíjas felhasznált költ'!A37,'műszaki berendezések'!$S$9:$S$24))+((SUMIF('egyéb berendezések'!$B$9:$B$23,'Ösztöndíjas felhasznált költ'!A37,'egyéb berendezések'!$S$9:$S$24))))))))))","v":0}]
[null,{"$f":"SUM(((SUMIF(' anyagköltség '!$B$9:$B$33,'Ösztöndíjas felhasznált költ'!A38,' anyagköltség '!$P$9:$P$33)+((SUMIF('igénybe vett szolg'!$B$9:$B$26,'Ösztöndíjas felhasznált költ'!A38,'igénybe vett szolg'!$P$9:$P$26))+((SUMIF('egyéb szolgáltatások'!$B$9:$B$23,'Ösztöndíjas felhasznált költ'!A38,'egyéb szolgáltatások'!$P$9:$P$23))+((SUMIF('immat jav beszerz'!$B$9:$B$23,'Ösztöndíjas felhasznált költ'!A38,'immat jav beszerz'!$S$9:$S$24))+((SUMIF('műszaki berendezések'!$B$9:$B$23,'Ösztöndíjas felhasznált költ'!A38,'műszaki berendezések'!$S$9:$S$24))+((SUMIF('egyéb berendezések'!$B$9:$B$23,'Ösztöndíjas felhasznált költ'!A38,'egyéb berendezések'!$S$9:$S$24))))))))))","v":0}]
[null,{"$f":"SUM(((SUMIF(' anyagköltség '!$B$9:$B$33,'Ösztöndíjas felhasznált költ'!A39,' anyagköltség '!$P$9:$P$33)+((SUMIF('igénybe vett szolg'!$B$9:$B$26,'Ösztöndíjas felhasznált költ'!A39,'igénybe vett szolg'!$P$9:$P$26))+((SUMIF('egyéb szolgáltatások'!$B$9:$B$23,'Ösztöndíjas felhasznált költ'!A39,'egyéb szolgáltatások'!$P$9:$P$23))+((SUMIF('immat jav beszerz'!$B$9:$B$23,'Ösztöndíjas felhasznált költ'!A39,'immat jav beszerz'!$S$9:$S$24))+((SUMIF('műszaki berendezések'!$B$9:$B$23,'Ösztöndíjas felhasznált költ'!A39,'műszaki berendezések'!$S$9:$S$24))+((SUMIF('egyéb berendezések'!$B$9:$B$23,'Ösztöndíjas felhasznált költ'!A39,'egyéb berendezések'!$S$9:$S$24))))))))))","v":0}]
[null,{"$f":"SUM(((SUMIF(' anyagköltség '!$B$9:$B$33,'Ösztöndíjas felhasznált költ'!A40,' anyagköltség '!$P$9:$P$33)+((SUMIF('igénybe vett szolg'!$B$9:$B$26,'Ösztöndíjas felhasznált költ'!A40,'igénybe vett szolg'!$P$9:$P$26))+((SUMIF('egyéb szolgáltatások'!$B$9:$B$23,'Ösztöndíjas felhasznált költ'!A40,'egyéb szolgáltatások'!$P$9:$P$23))+((SUMIF('immat jav beszerz'!$B$9:$B$23,'Ösztöndíjas felhasznált költ'!A40,'immat jav beszerz'!$S$9:$S$24))+((SUMIF('műszaki berendezések'!$B$9:$B$23,'Ösztöndíjas felhasznált költ'!A40,'műszaki berendezések'!$S$9:$S$24))+((SUMIF('egyéb berendezések'!$B$9:$B$23,'Ösztöndíjas felhasznált költ'!A40,'egyéb berendezések'!$S$9:$S$24))))))))))","v":0}]
[null,{"$f":"SUM(((SUMIF(' anyagköltség '!$B$9:$B$33,'Ösztöndíjas felhasznált költ'!A41,' anyagköltség '!$P$9:$P$33)+((SUMIF('igénybe vett szolg'!$B$9:$B$26,'Ösztöndíjas felhasznált költ'!A41,'igénybe vett szolg'!$P$9:$P$26))+((SUMIF('egyéb szolgáltatások'!$B$9:$B$23,'Ösztöndíjas felhasznált költ'!A41,'egyéb szolgáltatások'!$P$9:$P$23))+((SUMIF('immat jav beszerz'!$B$9:$B$23,'Ösztöndíjas felhasznált költ'!A41,'immat jav beszerz'!$S$9:$S$24))+((SUMIF('műszaki berendezések'!$B$9:$B$23,'Ösztöndíjas felhasznált költ'!A41,'műszaki berendezések'!$S$9:$S$24))+((SUMIF('egyéb berendezések'!$B$9:$B$23,'Ösztöndíjas felhasznált költ'!A41,'egyéb berendezések'!$S$9:$S$24))))))))))","v":0}]
[null,{"$f":"SUM(((SUMIF(' anyagköltség '!$B$9:$B$33,'Ösztöndíjas felhasznált költ'!A42,' anyagköltség '!$P$9:$P$33)+((SUMIF('igénybe vett szolg'!$B$9:$B$26,'Ösztöndíjas felhasznált költ'!A42,'igénybe vett szolg'!$P$9:$P$26))+((SUMIF('egyéb szolgáltatások'!$B$9:$B$23,'Ösztöndíjas felhasznált költ'!A42,'egyéb szolgáltatások'!$P$9:$P$23))+((SUMIF('immat jav beszerz'!$B$9:$B$23,'Ösztöndíjas felhasznált költ'!A42,'immat jav beszerz'!$S$9:$S$24))+((SUMIF('műszaki berendezések'!$B$9:$B$23,'Ösztöndíjas felhasznált költ'!A42,'műszaki berendezések'!$S$9:$S$24))+((SUMIF('egyéb berendezések'!$B$9:$B$23,'Ösztöndíjas felhasznált költ'!A42,'egyéb berendezések'!$S$9:$S$24))))))))))","v":0}]
[null,{"$f":"SUM(((SUMIF(' anyagköltség '!$B$9:$B$33,'Ösztöndíjas felhasznált költ'!A43,' anyagköltség '!$P$9:$P$33)+((SUMIF('igénybe vett szolg'!$B$9:$B$26,'Ösztöndíjas felhasznált költ'!A43,'igénybe vett szolg'!$P$9:$P$26))+((SUMIF('egyéb szolgáltatások'!$B$9:$B$23,'Ösztöndíjas felhasznált költ'!A43,'egyéb szolgáltatások'!$P$9:$P$23))+((SUMIF('immat jav beszerz'!$B$9:$B$23,'Ösztöndíjas felhasznált költ'!A43,'immat jav beszerz'!$S$9:$S$24))+((SUMIF('műszaki berendezések'!$B$9:$B$23,'Ösztöndíjas felhasznált költ'!A43,'műszaki berendezések'!$S$9:$S$24))+((SUMIF('egyéb berendezések'!$B$9:$B$23,'Ösztöndíjas felhasznált költ'!A43,'egyéb berendezések'!$S$9:$S$24))))))))))","v":0}]
[null,{"$f":"SUM(((SUMIF(' anyagköltség '!$B$9:$B$33,'Ösztöndíjas felhasznált költ'!A44,' anyagköltség '!$P$9:$P$33)+((SUMIF('igénybe vett szolg'!$B$9:$B$26,'Ösztöndíjas felhasznált költ'!A44,'igénybe vett szolg'!$P$9:$P$26))+((SUMIF('egyéb szolgáltatások'!$B$9:$B$23,'Ösztöndíjas felhasznált költ'!A44,'egyéb szolgáltatások'!$P$9:$P$23))+((SUMIF('immat jav beszerz'!$B$9:$B$23,'Ösztöndíjas felhasznált költ'!A44,'immat jav beszerz'!$S$9:$S$24))+((SUMIF('műszaki berendezések'!$B$9:$B$23,'Ösztöndíjas felhasznált költ'!A44,'műszaki berendezések'!$S$9:$S$24))+((SUMIF('egyéb berendezések'!$B$9:$B$23,'Ösztöndíjas felhasznált költ'!A44,'egyéb berendezések'!$S$9:$S$24))))))))))","v":0}]
[null,{"$f":"SUM(((SUMIF(' anyagköltség '!$B$9:$B$33,'Ösztöndíjas felhasznált költ'!A45,' anyagköltség '!$P$9:$P$33)+((SUMIF('igénybe vett szolg'!$B$9:$B$26,'Ösztöndíjas felhasznált költ'!A45,'igénybe vett szolg'!$P$9:$P$26))+((SUMIF('egyéb szolgáltatások'!$B$9:$B$23,'Ösztöndíjas felhasznált költ'!A45,'egyéb szolgáltatások'!$P$9:$P$23))+((SUMIF('immat jav beszerz'!$B$9:$B$23,'Ösztöndíjas felhasznált költ'!A45,'immat jav beszerz'!$S$9:$S$24))+((SUMIF('műszaki berendezések'!$B$9:$B$23,'Ösztöndíjas felhasznált költ'!A45,'műszaki berendezések'!$S$9:$S$24))+((SUMIF('egyéb berendezések'!$B$9:$B$23,'Ösztöndíjas felhasznált költ'!A45,'egyéb berendezések'!$S$9:$S$24))))))))))","v":0}]
[null,{"$f":"SUM(((SUMIF(' anyagköltség '!$B$9:$B$33,'Ösztöndíjas felhasznált költ'!A46,' anyagköltség '!$P$9:$P$33)+((SUMIF('igénybe vett szolg'!$B$9:$B$26,'Ösztöndíjas felhasznált költ'!A46,'igénybe vett szolg'!$P$9:$P$26))+((SUMIF('egyéb szolgáltatások'!$B$9:$B$23,'Ösztöndíjas felhasznált költ'!A46,'egyéb szolgáltatások'!$P$9:$P$23))+((SUMIF('immat jav beszerz'!$B$9:$B$23,'Ösztöndíjas felhasznált költ'!A46,'immat jav beszerz'!$S$9:$S$24))+((SUMIF('műszaki berendezések'!$B$9:$B$23,'Ösztöndíjas felhasznált költ'!A46,'műszaki berendezések'!$S$9:$S$24))+((SUMIF('egyéb berendezések'!$B$9:$B$23,'Ösztöndíjas felhasznált költ'!A46,'egyéb berendezések'!$S$9:$S$24))))))))))","v":0}]
[null,{"$f":"SUM(((SUMIF(' anyagköltség '!$B$9:$B$33,'Ösztöndíjas felhasznált költ'!A47,' anyagköltség '!$P$9:$P$33)+((SUMIF('igénybe vett szolg'!$B$9:$B$26,'Ösztöndíjas felhasznált költ'!A47,'igénybe vett szolg'!$P$9:$P$26))+((SUMIF('egyéb szolgáltatások'!$B$9:$B$23,'Ösztöndíjas felhasznált költ'!A47,'egyéb szolgáltatások'!$P$9:$P$23))+((SUMIF('immat jav beszerz'!$B$9:$B$23,'Ösztöndíjas felhasznált költ'!A47,'immat jav beszerz'!$S$9:$S$24))+((SUMIF('műszaki berendezések'!$B$9:$B$23,'Ösztöndíjas felhasznált költ'!A47,'műszaki berendezések'!$S$9:$S$24))+((SUMIF('egyéb berendezések'!$B$9:$B$23,'Ösztöndíjas felhasznált költ'!A47,'egyéb berendezések'!$S$9:$S$24))))))))))","v":0}]
[null,{"$f":"SUM(((SUMIF(' anyagköltség '!$B$9:$B$33,'Ösztöndíjas felhasznált költ'!A48,' anyagköltség '!$P$9:$P$33)+((SUMIF('igénybe vett szolg'!$B$9:$B$26,'Ösztöndíjas felhasznált költ'!A48,'igénybe vett szolg'!$P$9:$P$26))+((SUMIF('egyéb szolgáltatások'!$B$9:$B$23,'Ösztöndíjas felhasznált költ'!A48,'egyéb szolgáltatások'!$P$9:$P$23))+((SUMIF('immat jav beszerz'!$B$9:$B$23,'Ösztöndíjas felhasznált költ'!A48,'immat jav beszerz'!$S$9:$S$24))+((SUMIF('műszaki berendezések'!$B$9:$B$23,'Ösztöndíjas felhasznált költ'!A48,'műszaki berendezések'!$S$9:$S$24))+((SUMIF('egyéb berendezések'!$B$9:$B$23,'Ösztöndíjas felhasznált költ'!A48,'egyéb berendezések'!$S$9:$S$24))))))))))","v":0}]
[null,{"$f":"SUM(((SUMIF(' anyagköltség '!$B$9:$B$33,'Ösztöndíjas felhasznált költ'!A49,' anyagköltség '!$P$9:$P$33)+((SUMIF('igénybe vett szolg'!$B$9:$B$26,'Ösztöndíjas felhasznált költ'!A49,'igénybe vett szolg'!$P$9:$P$26))+((SUMIF('egyéb szolgáltatások'!$B$9:$B$23,'Ösztöndíjas felhasznált költ'!A49,'egyéb szolgáltatások'!$P$9:$P$23))+((SUMIF('immat jav beszerz'!$B$9:$B$23,'Ösztöndíjas felhasznált költ'!A49,'immat jav beszerz'!$S$9:$S$24))+((SUMIF('műszaki berendezések'!$B$9:$B$23,'Ösztöndíjas felhasznált költ'!A49,'műszaki berendezések'!$S$9:$S$24))+((SUMIF('egyéb berendezések'!$B$9:$B$23,'Ösztöndíjas felhasznált költ'!A49,'egyéb berendezések'!$S$9:$S$24))))))))))","v":0}]
[null,{"$f":"SUM(((SUMIF(' anyagköltség '!$B$9:$B$33,'Ösztöndíjas felhasznált költ'!A50,' anyagköltség '!$P$9:$P$33)+((SUMIF('igénybe vett szolg'!$B$9:$B$26,'Ösztöndíjas felhasznált költ'!A50,'igénybe vett szolg'!$P$9:$P$26))+((SUMIF('egyéb szolgáltatások'!$B$9:$B$23,'Ösztöndíjas felhasznált költ'!A50,'egyéb szolgáltatások'!$P$9:$P$23))+((SUMIF('immat jav beszerz'!$B$9:$B$23,'Ösztöndíjas felhasznált költ'!A50,'immat jav beszerz'!$S$9:$S$24))+((SUMIF('műszaki berendezések'!$B$9:$B$23,'Ösztöndíjas felhasznált költ'!A50,'műszaki berendezések'!$S$9:$S$24))+((SUMIF('egyéb berendezések'!$B$9:$B$23,'Ösztöndíjas felhasznált költ'!A50,'egyéb berendezések'!$S$9:$S$24))))))))))","v":0}]
[null,{"$f":"SUM(((SUMIF(' anyagköltség '!$B$9:$B$33,'Ösztöndíjas felhasznált költ'!A51,' anyagköltség '!$P$9:$P$33)+((SUMIF('igénybe vett szolg'!$B$9:$B$26,'Ösztöndíjas felhasznált költ'!A51,'igénybe vett szolg'!$P$9:$P$26))+((SUMIF('egyéb szolgáltatások'!$B$9:$B$23,'Ösztöndíjas felhasznált költ'!A51,'egyéb szolgáltatások'!$P$9:$P$23))+((SUMIF('immat jav beszerz'!$B$9:$B$23,'Ösztöndíjas felhasznált költ'!A51,'immat jav beszerz'!$S$9:$S$24))+((SUMIF('műszaki berendezések'!$B$9:$B$23,'Ösztöndíjas felhasznált költ'!A51,'műszaki berendezések'!$S$9:$S$24))+((SUMIF('egyéb berendezések'!$B$9:$B$23,'Ösztöndíjas felhasznált költ'!A51,'egyéb berendezések'!$S$9:$S$24))))))))))","v":0}]
[null,{"$f":"SUM(((SUMIF(' anyagköltség '!$B$9:$B$33,'Ösztöndíjas felhasznált költ'!A52,' anyagköltség '!$P$9:$P$33)+((SUMIF('igénybe vett szolg'!$B$9:$B$26,'Ösztöndíjas felhasznált költ'!A52,'igénybe vett szolg'!$P$9:$P$26))+((SUMIF('egyéb szolgáltatások'!$B$9:$B$23,'Ösztöndíjas felhasznált költ'!A52,'egyéb szolgáltatások'!$P$9:$P$23))+((SUMIF('immat jav beszerz'!$B$9:$B$23,'Ösztöndíjas felhasznált költ'!A52,'immat jav beszerz'!$S$9:$S$24))+((SUMIF('műszaki berendezések'!$B$9:$B$23,'Ösztöndíjas felhasznált költ'!A52,'műszaki berendezések'!$S$9:$S$24))+((SUMIF('egyéb berendezések'!$B$9:$B$23,'Ösztöndíjas felhasznált költ'!A52,'egyéb berendezések'!$S$9:$S$24))))))))))","v":0}]
[null,{"$f":"SUM(((SUMIF(' anyagköltség '!$B$9:$B$33,'Ösztöndíjas felhasznált költ'!A53,' anyagköltség '!$P$9:$P$33)+((SUMIF('igénybe vett szolg'!$B$9:$B$26,'Ösztöndíjas felhasznált költ'!A53,'igénybe vett szolg'!$P$9:$P$26))+((SUMIF('egyéb szolgáltatások'!$B$9:$B$23,'Ösztöndíjas felhasznált költ'!A53,'egyéb szolgáltatások'!$P$9:$P$23))+((SUMIF('immat jav beszerz'!$B$9:$B$23,'Ösztöndíjas felhasznált költ'!A53,'immat jav beszerz'!$S$9:$S$24))+((SUMIF('műszaki berendezések'!$B$9:$B$23,'Ösztöndíjas felhasznált költ'!A53,'műszaki berendezések'!$S$9:$S$24))+((SUMIF('egyéb berendezések'!$B$9:$B$23,'Ösztöndíjas felhasznált költ'!A53,'egyéb berendezések'!$S$9:$S$24))))))))))","v":0}]
[null,{"$f":"SUM(((SUMIF(' anyagköltség '!$B$9:$B$33,'Ösztöndíjas felhasznált költ'!A54,' anyagköltség '!$P$9:$P$33)+((SUMIF('igénybe vett szolg'!$B$9:$B$26,'Ösztöndíjas felhasznált költ'!A54,'igénybe vett szolg'!$P$9:$P$26))+((SUMIF('egyéb szolgáltatások'!$B$9:$B$23,'Ösztöndíjas felhasznált költ'!A54,'egyéb szolgáltatások'!$P$9:$P$23))+((SUMIF('immat jav beszerz'!$B$9:$B$23,'Ösztöndíjas felhasznált költ'!A54,'immat jav beszerz'!$S$9:$S$24))+((SUMIF('műszaki berendezések'!$B$9:$B$23,'Ösztöndíjas felhasznált költ'!A54,'műszaki berendezések'!$S$9:$S$24))+((SUMIF('egyéb berendezések'!$B$9:$B$23,'Ösztöndíjas felhasznált költ'!A54,'egyéb berendezések'!$S$9:$S$24))))))))))","v":0}]
[]
["Összesen:",{"$f":"SUM(B8:B54)","v":0}]

{"sheet":"(LNY) lemondó nyilatkozat","index":12,"n_rows":31,"n_cols":2,"rows_kept":31,"cut":false,"hidden":false,"merged":[[6,0,6,1],[30,0,30,1],[15,0,16,1]]}
[]
["Egy példányban kitöltve, eredeti aláírással és bélyegzéssel ellátva kell benyújtani."]
[]
[]
[]
[]
["Lemondó Nyilatkozat"]
[]
[]
[]
["Kedvezményezett neve",{"$f":"'KDP ösztöndíj'!E1","v":0}]
["Szerződésszám",{"$f":"'KDP ösztöndíj'!E2","v":0}]
["Mérföldkő dátuma:",{"$f":"'KDP ösztöndíj'!E3","v":"00:00:00"}]
[]
[]
["Alulírott <név>, mint a <kedvezményezett megnevezése> társaság/szervezet cégjegyzésre jogosult vezetője nyilatkozom, hogy a fenti azonosító számú projekt megvalósításához a megítélt támogatásból összesen <a ténylegesen elszámolt támogatás összege> Ft került felhasználásra. A fennmaradó <a megítélt és a tényleges támogatás különbsége> Ft támogatásból összesen …………. Ft összeget a következő munkaszakasz(ok)ban kívánom felhasználni, és összesen …………. Ft összeget a továbbiakban nem kívánom igénybe venni, így arról lemondok."]
[]
[]
["Hely, dátum"]
[]
[]
[]
[null,"………………………………"]
[null,"Kedvezményezett cégszerű *"]
[null,"aláírása"]
[null,"Ph."]
[]
[]
[]
[]
["* Az aláírók nevét nyomtatott betűkkel is kérjük kitölteni"]

{"sheet":"lemondás megoszlás","index":13,"n_rows":22,"n_cols":4,"rows_kept":22,"cut":false,"hidden":false,"merged":[[7,14,7,17],[9,3,9,5],[10,1,10,2],[10,3,10,5],[11,1,11,2],[11,3,11,5],[7,6,8,6],[7,9,8,9],[7,1,7,2],[7,3,7,5],[13,0,18,0],[13,1,13,2],[13,3,13,5],[14,1,14,2],[8,0,12,0],[8,1,8,2],[8,3,8,5],[9,1,9,2],[12,1,12,2],[12,3,12,5],[0,0,0,2],[1,0,1,2],[2,0,2,2],[0,3,0,7],[1,3,1,7],[2,3,2,7],[20,0,20,2],[20,3,20,5],[21,0,21,2],[21,3,21,5],[5,0,5,5],[17,1,17,2],[17,3,17,5],[18,1,18,2],[18,3,18,5],[19,1,19,2],[19,3,19,5],[14,3,14,5],[15,1,15,2],[15,3,15,5],[16,1,16,2],[16,3,16,5]]}
["Kedvezményezett neve:",null,null,{"$f":"'KDP ösztöndíj'!E1","v":0}]
["Szerződésszám:",null,null,{"$f":"'KDP ösztöndíj'!E2","v":0}]
["Az elszámolással érintett időszak kezdete és vége:",null,null,{"$f":"'KDP ösztöndíj'!E3","v":0}]
[]
[]
["Lemondott támogatás összesítő"]
[]
["Költség kategória","Költség fajta",null,"Lemondott támogatás összege (Ft)"]
["KDP ösztöndíj témavezető és vállalati szakértő díjazása+járulékai","Bérköltség - KDP ösztöndíjas"]
[null,"Bérköltség - Témavezető"]
[null,"Bérköltség - Vállalati szakértő"]
[null,"Személyi jellegű egyéb kifizetések - Fokozat megszerzési díj"]
[null,"Bérjárulék (Témavezető, vállalati szakértő)"]
["KDP ösztöndíjasok után biztosított támogatás - 80%","Immateriális javak"]
[null,"Műszaki berendezések, gépek, járművek"]
[null,"Egyéb berendezések, gépek, járművek"]
[null,"Anyagköltség"]
[null,"Igénybe vett szolgáltatások költségei"]
[null,"Egyéb szolgáltatások költségei"]
["20 %-os átalány","Intézményi működési költség - átalány"]
["Intézményi támogatás összesen (Ft)",null,null,{"$f":"SUM(D14:F20)","v":0}]
["Összes lemondott támogatás (Ft)"]

{"sheet":"(NYF)nyilatkozat függetlenségre","index":14,"n_rows":31,"n_cols":2,"rows_kept":31,"cut":false,"hidden":false,"merged":[[6,0,6,1],[15,0,15,1],[30,0,30,1]]}
[]
["Egy példányban kitöltve, eredeti aláírással és bélyegzéssel ellátva kell benyújtani."]
[]
[]
[]
[]
["Nyilatkozat az összeférhetetlenségre vonatkozóan"]
[]
[]
[]
["Kedvezményezett neve",{"$f":"'KDP ösztöndíj'!E1","v":0}]
["Szerződésszám",{"$f":"'KDP ösztöndíj'!E2","v":0}]
["Mérföldkő dátuma:",{"$f":"'KDP ösztöndíj'!E3","v":0}]
[]
[]
["Alulírott <név>, mint a <kedvezményezett megnevezése> társaság/szervezet  cégjegyzésre jogosult vezetője büntető jogi felelősségem tudatában nyilatkozom, hogy a fenti azonosító számú támogatási szerződés alapján finanszírozott projekt megvalósításához igénybe vett szolgáltatások és beszerzések a szokásos piaci feltételeknek megfelelően, független felek között, a hivatkozott támogatási szerződésben, valamint ennek mellékleteiben foglalt előírások szerint jöttek létre."]
[]
[]
["Hely, dátum"]
[]
[]
[]
[null,"………………………………"]
[null,"Kedvezményezett cégszerű *"]
[null,"aláírása"]
[null,"Ph."]
[]
[]
[]
[]
["* Az aláírók nevét nyomtatott betűkkel is kérjük kitölteni"]

{"sheet":"nyilatkozat a kettős elszámolás","index":15,"n_rows":31,"n_cols":2,"rows_kept":31,"cut":false,"hidden":false,"merged":[[6,0,6,1],[15,0,15,1],[30,0,30,1]]}
[]
["Egy példányban kitöltve, eredeti aláírással és bélyegzéssel ellátva kell benyújtani."]
[]
[]
[]
[]
["Nyilatkozat a kettős finanszírozás elkerüléséről"]
[]
[]
[]
["Kedvezményezett neve",{"$f":"'KDP ösztöndíj'!E1","v":0}]
["Szerződésszám",{"$f":"'KDP ösztöndíj'!E2","v":0}]
["Mérföldkő dátuma:",{"$f":"'KDP ösztöndíj'!E3","v":0}]
[]
[]
["Alulírott <név>, mint a <Kedvezményezett intézmény megnevezése> gazdasági vezetője/ cégjegyzésre jogosult vezetője nyilatkozom, hogy a fenti azonosító számú projekt megvalósításához a számlaösszesítőben szereplő azon tételek esetében, ahol raktári készlet felhasználálás valamint eszközök és  immateriális javak amortiációjának elszámolása történt, a beszerzéshez kapcsolódóan korábban sem EU-s, sem hazai támogatás nem kapcsolódik."]
[]
[]
["Hely, dátum"]
[]
[]
[]
[null,"………………………………"]
[null,"Kedvezményezett cégszerű *"]
[null,"aláírása"]
[null,"Ph."]
[]
[]
[]
[]
["* Az aláírók nevét nyomtatott betűkkel is kérjük kitölteni"]

{"sheet":"támogatás típusai","index":16,"n_rows":14,"n_cols":3,"rows_kept":14,"cut":false,"hidden":true,"merged":[[1,1,1,2],[4,2,5,2],[7,2,11,2]]}
[]
["támogatás típus rövídítése","támogatás típusa"]
[]
["K+F/Alap.","Alapkutatás","Kutatás-fejlesztési projekthez nyújtott támogatás "]
["K+F/Alkalm.","Alkalmazott (ipari) kutatás"]
["K+F/Kis.fejl.","Kísérleti fejlesztés"]
["D.M./Közbesz.","Közbeszerzés","De minimis támogatás"]
["D.M./Koord.","Koordinációs költség"]
["D.M./Tájék.","Tájékoztatási költség"]
["D.M./Piac","Piacra jutáshoz kapcsolódó költségek"]
["D.M./Iparjog","Iparjogvédelemmel kapcsolatos költségek"]
["D.M./Rezsi","Általános (rezsi) költségek"]
["Kut.infra.- b.r.","Kutatási infrastruktúrához nyújtott beruházási támogatás","Kutatási infrastruktúrához nyújtott beruházási támogatás"]
["Nem állami támogatás","Nem állami támogatás"]